Cogmind - Beta 13 @@@ ROGUE MODE // 2024.04.23 @ 01:00:31 Player: ThatBishHoly Result: Destroyed by Y-45 Defender with Heavy Assault Rifle Performance ------------- Evolutions (1) 500 Regions Visited (4) 800 Robots Destroyed (7) 35 Value Destroyed (263) 263 Prototype IDs (1) 20 Alien Tech Used (0) 0 Bonus (0) 0 TOTAL SCORE: 1618 Bonus ------- None Cogmind --------- Core Integrity 0/400 Matter 240/300 Energy 42/100 System Corruption 0% Temperature Cool (9) Movement Core (50) Location -9/Storage Parts ------- > --- POWER (1) -------- (None) > --- PROPULSION (2) --- (None) > --- UTILITY (4) ------ (None) > --- WEAPON (2) ------- Heavy Assault Rifle > --- INVENTORY (5) ---- Light Ion Engine Seismic Detector Mining Laser Peak State ------------ > --- POWER ------------ Light Nuclear Core > --- PROPULSION ------- Wheel Wheel > --- UTILITY ---------- Large Battery Experimental Sensor Array > --- WEAPON ----------- EM Pulse Gun Grenade Launcher > --- INVENTORY -------- Light Ion Engine Structural Scanner Grenade Launcher Rocket Launcher [Rating: 17] Favorites ----------- Power Light Nuclear Core Engine Light Ion Engine Power Core Light Nuclear Core Propulsion Wheel Wheel Wheel Utility Large Battery Device Experimental Sensor Array Storage Large Battery Weapon EM Pulse Gun Energy Gun EM Pulse Gun Ballistic Gun Heavy Assault Rifle Launcher Grenade Launcher Build | -11 -10 -10 -9 -9 ------- Run | Yrd Mat Min Mat Sto Slots Evolved 2 | . . . 2 . Power . | . . . . . Propulsion . | . . . . . Utility 2 | . . . 2 . Weapon . | . . . . . Parts Attached 21 | 4 3 3 3 8 Power 3 | 1 . 1 . 1 Engine 2 | 1 . . . 1 Core 1 | . . 1 . . Reactor . | . . . . . Propulsion 4 | 2 . . . 2 Treads . | . . . . . Leg . | . . . . . Wheel 4 | 2 . . . 2 Hover . | . . . . . Flight . | . . . . . Utility 7 | . 2 2 2 1 Device 5 | . 1 1 2 1 Storage 2 | . 1 1 . . Processor . | . . . . . Hackware . | . . . . . Protection . | . . . . . Artifact . | . . . . . Weapon 7 | 1 1 . 1 4 Energy Gun 1 | 1 . . . . Energy Cannon . | . . . . . Ballistic Gun 1 | . . . . 1 Ballistic Cannon . | . . . . . Launcher 5 | . 1 . 1 3 Special Weapon . | . . . . . Impact Weapon . | . . . . . Slashing Weapon . | . . . . . Piercing Weapon . | . . . . . Special Melee Weapon . | . . . . . Unidentified Prototypes 1 | . . 1 . . Parts Lost 14 | . . . . 14 Power 2 | . . . . 2 Propulsion 4 | . . . . 4 Utility 3 | . . . . 3 Weapon 5 | . . . . 5 Highest Loss Streak 8 | . . . . 8 To Critical Strikes . | . . . . . Average Slot Usage (%) 73 | . 90 100 68 32 Engine 4 | . 14 5 . 2 Core 6 | . . 8 11 2 Wheel 21 | . 28 28 22 6 Device 8 | . 9 14 2 4 Storage 11 | . 11 14 11 8 Energy Gun 10 | . 14 14 11 2 Launcher 10 | . 11 14 11 4 Naked Turns 18 | . . . . 18 Heaviest Build 14 | 5 11 14 14 14 Greatest Support 20 | 20 20 20 20 20 Greatest Overweight (x) 3 | . . . . 3 Average Overweight (x) . | . . . . . Largest Inventory Capacity 5 | 5 5 5 5 5 Average Capacity 5 | 5 5 5 5 5 Most Carried 5 | 4 2 4 4 5 Average Carried 2 | . . 2 3 3 Final Capacity 5 | 5 5 5 5 5 Final Carried 4 | . 1 3 4 3 Class Distribution -------------------- 100% | Mutant Dominant Class ---------------- Mutant | -10/Materials Mutant | -10/Mines Mutant | -9/Materials Mutant | -9/Storage Resources | -11 -10 -10 -9 -9 ----------- Run | Yrd Mat Min Mat Sto Matter Collected 428 | 240 . 76 27 85 Remotely . | . . . . . Salvage Created 150 | . . 71 78 1 Parts 14 | . . 3 6 5 Haulers Intercepted . | . . . . . Recyclers Shooed . | . . . . . Parts Field Recycled . | . . . . . Retrieved Matter . | . . . . . Parts Self-Destructed . | . . . . . Prevented . | . . . . . Kills | -11 -10 -10 -9 -9 ------- Run | Yrd Mat Min Mat Sto Combat Hostiles Destroyed 6 | . . 2 3 1 Guns 1 | . . . 1 . AOE 5 | . . 2 2 1 Classes Destroyed 3 | . . 1 . 2 Builder 1 | . . . . 1 Grunt 5 | . . 2 3 . Sentry 1 | . . . . 1 Best Kill Streak 3 | . . 2 3 2 Combat Bots Only 3 | . . 2 3 1 Max Kills in Single Turn 1 | . . 1 1 1 Gunslinging . | . . . . . Exploded 1 | . . 1 1 1 Melee . | . . . . . Uniques/NPCs Destroyed . | . . . . . Combat | -11 -10 -10 -9 -9 -------- Run | Yrd Mat Min Mat Sto Hostile Shots Fired 75 | . 8 2 5 60 Missed 27 | . 4 . 4 19 Damage Taken 1087 | . 39 34 10 1004 Core 423 | . 9 . . 414 Absorbed by Shields . | . . . . . Regen/Repaired (Parts) 11 | . . . 11 . Core Remaining (%) 98 | 100 . 96 . . Volleys Fired 17 | . 2 2 4 9 Largest 2 | . 1 2 2 2 Hottest 70 | . 40 70 70 70 Shots Fired 30 | . 2 4 8 16 Gun 15 | . 2 2 4 7 Cannon . | . . . . . Launcher 15 | . . 2 4 9 Special . | . . . . . Kinetic 2 | . . . . 2 Thermal . | . . . . . Explosive 14 | . . 2 4 8 Electromagnetic 14 | . 2 2 4 6 Robot Hit Streak 17 | . . 4 9 17 Robot Miss Streak 2 | . 2 . 1 . Penetration Max . | . . . . . Secondary Targets . | . . . . . Shots Hit Robots 26 | . . 4 6 16 Core Hits 15 | . . 3 5 7 Critical Kills . | . . . . . Critical Parts Destroyed . | . . . . . Critical Strikes . | . . . . . Melee Attacks . | . . . . . Impact . | . . . . . Slashing . | . . . . . Piercing . | . . . . . Sneak Attacks . | . . . . . Combat Hostiles . | . . . . . Follow-up Attacks . | . . . . . Damage Inflicted 696 | . 4 128 222 342 Guns 158 | . . 25 45 88 Cannons . | . . . . . Explosions 529 | . . 98 177 254 Melee . | . . . . . Ramming 9 | . 4 5 . . Kinetic 32 | . . . . 32 Thermal 104 | . . . 48 56 Explosive 392 | . . 98 129 165 Electromagnetic 159 | . . 25 45 89 Impact . | . . . . . Slashing . | . . . . . Piercing . | . . . . . Highest Corruption . | . . . . . Average Corruption . | . . . . . Corruption Purged . | . . . . . Corruption Blocked . | . . . . . Overload Shots . | . . . . . Overflow Damage 99 | . . . 9 90 Projectiles . | . . . . . Explosions 99 | . . . 9 90 Melee . | . . . . . Knockbacks . | . . . . . Impact . | . . . . . Kinetic . | . . . . . Secondary . | . . . . . Self-Inflicted Damage 313 | . 2 2 . 309 Shots 10 | . . . . 10 Rammed 2 | . 1 1 . . Targets Rammed 2 | . 1 1 . . Kicked . | . . . . . Crushed . | . . . . . Highest Temperature 51 | . . 36 51 20 Average Temperature 20 | . . 21 32 6 Received Heat Transfer 237 | . . 18 6 213 Siege Activations . | . . . . . Robots Corrupted . | . . . . . Combat Hostiles . | . . . . . Parts Fried . | . . . . . Impact Corruptions . | . . . . . Robots Melted . | . . . . . Combat Hostiles . | . . . . . Parts Melted . | . . . . . Heat Transferred 100 | . . . 50 50 Parts Sabotaged . | . . . . . Parts Stolen . | . . . . . Parts Stripped . | . . . . . Power Chain Reactions 2 | . . . 1 1 Alert | -11 -10 -10 -9 -9 ------- Run | Yrd Mat Min Mat Sto Peak Influence 127 | . 15 78 127 73 Initial 53 | . . 5 29 53 Average 58 | . 2 50 109 53 Maximum Alert Level . | . . . . . Low Security (%) 100 | 100 100 100 100 100 Level 1 . | . . . . . Level 2 . | . . . . . Level 3 . | . . . . . Level 4 . | . . . . . Level 5 . | . . . . . High Security . | . . . . . Max Security . | . . . . . Squads Dispatched 2 | . 1 . 1 . Investigation 1 | . . . 1 . Extermination . | . . . . . Reinforcement 1 | . 1 . . . Assault . | . . . . . Garrison . | . . . . . Intercept . | . . . . . Searches Triggered . | . . . . . Construction Impeded . | . . . . . Haulers Reinforced . | . . . . . Active Scanning Responses . | . . . . . Cargo Convoy Interrupts . | . . . . . Stealth | -11 -10 -10 -9 -9 --------- Run | Yrd Mat Min Mat Sto Distress Signals . | . . . . . Communications Jammed . | . . . . . Distress Signals . | . . . . . Times Spotted 17 | . 5 2 3 7 Peak Tracking Total 7 | . 5 2 3 7 Tactical Retreats 1 | . . . . 1 Traps | -11 -10 -10 -9 -9 ------- Run | Yrd Mat Min Mat Sto Traps Triggered 1 | . . . . 1 Indirectly . | . . . . . Trap Hack Attempts . | . . . . . Triggered . | . . . . . Disarmed . | . . . . . Reprogrammed . | . . . . . Reused . | . . . . . Traps Extracted . | . . . . . Installed . | . . . . . Triggered . | . . . . . Machines | -11 -10 -10 -9 -9 ---------- Run | Yrd Mat Min Mat Sto Machines Disabled 3 | . . 1 1 1 Max in Single Turn 1 | . . 1 1 1 Machines Repaired . | . . . . . Machines Dismantled . | . . . . . Machines Sabotaged . | . . . . . Overloaded Fab Kills . | . . . . . Hacking | -11 -10 -10 -9 -9 --------- Run | Yrd Mat Min Mat Sto Machines Accessed 2 | . . . 2 . Terminals . | . . . . . Fabricators . | . . . . . Repair Stations 1 | . . . 1 . Recycling Units . | . . . . . Scanalyzers 1 | . . . 1 . Garrison Access . | . . . . . Total Hacks 5 | . . . 5 . Successful 4 | . . . 4 . Failed 1 | . . . 1 . Catastrophic 1 | . . . 1 . Database Lockouts . | . . . . . Manual . | . . . . . Terminals . | . . . . . Fabricators . | . . . . . Repair Stations 3 | . . . 3 . Recycling Units . | . . . . . Scanalyzers 2 | . . . 2 . Garrison Access . | . . . . . Terminal Hacks . | . . . . . Fabricator Hacks . | . . . . . Repair Station Hacks 2 | . . . 2 . Scan Component 1 | . . . 1 . Repair 1 | . . . 1 . Recycling Unit Hacks . | . . . . . Scanalyzer 2 | . . . 2 . Insert Component 1 | . . . 1 . Analyze 1 | . . . 1 . Garrison Access Hacks . | . . . . . Unauthorized Hacks . | . . . . . Terminals . | . . . . . Fabricators . | . . . . . Repair Stations . | . . . . . Recycling Units . | . . . . . Scanalyzers . | . . . . . Garrison Access . | . . . . . Data Cores Recovered . | . . . . . Used . | . . . . . Hacking Detections 1 | . . . 1 . Full Trace Events 1 | . . . 1 . Feedback Events . | . . . . . Feedback Blocked . | . . . . . Robot Schematics Acquired . | . . . . . Robots Built . | . . . . . Authchips . | . . . . . Time . | . . . . . Total Robot Build Rating . | . . . . . Part Schematics Acquired 1 | . . . 1 . Parts Built . | . . . . . Authchips . | . . . . . Time . | . . . . . Total Part Build Rating . | . . . . . Parts Repaired 1 | . . . 1 . Time 108 | . . . 108 . Parts Recycled . | . . . . . Recycled Matter . | . . . . . Retrieved Matter . | . . . . . Retrieved Components . | . . . . . Parts Scanalyzed 1 | . . . 1 . Part Schematics Acquired 1 | . . . 1 . Parts Damaged 1 | . . . 1 . Bothacking | -11 -10 -10 -9 -9 ------------ Run | Yrd Mat Min Mat Sto Used RIF Installer . | . . . . . Robots Hacked . | . . . . . Non-combat . | . . . . . Combat . | . . . . . Robot Hacks Applied . | . . . . . Relay Couplers Released . | . . . . . Fabnet Peak Effective % . | . . . . . Robots Rewired . | . . . . . Allies Hacked . | . . . . . Hacks Repelled . | . . . . . Allies | -11 -10 -10 -9 -9 -------- Run | Yrd Mat Min Mat Sto Total Allies 1 | . . 1 . . Largest Group 1 | . . 1 . . Highest-Rated Group 31 | . . 31 . . Highest-Rated Ally 31 | . . 31 . . Total Orders . | . . . . . Ally Attacks . | . . . . . Total Damage . | . . . . . Kills . | . . . . . Allies Corrupted . | . . . . . Allies Melted . | . . . . . Intel | -11 -10 -10 -9 -9 ------- Run | Yrd Mat Min Mat Sto Robot Analysis Total . | . . . . . Derelict Logs Recovered 1 | . . 1 . . Drone Launches . | . . . . . Drone Recoveries . | . . . . . Exploration | -11 -10 -10 -9 -9 ------------- Run | Yrd Mat Min Mat Sto Turns Passed 663 | 31 60 254 160 158 Spaces Moved 631 | 36 60 295 79 161 Core 122 | 18 . . . 104 Treads . | . . . . . Legs . | . . . . . Wheels 509 | 18 60 295 79 57 Hover . | . . . . . Flight . | . . . . . Fastest Speed 50 | 50 80 80 80 50 Average Speed 77 | 65 80 80 80 73 Slowest Speed 200 | 80 80 80 80 200 Overloaded Moves . | . . . . . Propulsion Burnouts . | . . . . . Robots Hopped . | . . . . . Cave-ins Triggered . | . . . . . Exploration Rate (%) 21 | 3 17 50 4 34 Regions Visited 4 Branch Regions 2 Pre-discovered Areas 1 | . . 1 . . Known Exits Taken . | . . . . . Unknown Exits Taken 4 | 1 1 1 1 . Scrap Searched 1 | . . 1 . . Spaces Dug . | . . . . . Terrain Destroyed 63 | . . 11 21 31 Melee . | . . . . . Projectile . | . . . . . AOE 63 | . . 11 21 31 Terrain Rammed . | . . . . . Walls Destroyed . | . . . . . Machines Disabled . | . . . . . Actions | -11 -10 -10 -9 -9 --------- Run | Yrd Mat Min Mat Sto Total 771 | 43 69 308 167 184 Wait 79 | . . . 79 . Move 628 | 35 60 294 78 161 Hop . | . . . . . Pick Up 21 | 4 4 5 2 6 Fast Attach 1 | . . . . 1 Attach 16 | 4 3 . 2 7 Detach 1 | . . . 1 . Swap 4 | . . 3 1 . Drop 3 | . . 3 . . Fire 17 | . 2 2 4 9 Melee . | . . . . . Ram 1 | . . 1 . . Kick . | . . . . . Crush . | . . . . . Escape Stasis . | . . . . . Rewire . | . . . . . Trap . | . . . . . Miscellaneous . | . . . . . Route ------- -11/Scrapyard -10/Materials -10/Mines (discovered 2 exits: *Mat / [*Sub]) -9/Materials -9/Storage History --------- Turn | Location | Event 3 | -11/Scrapyard | Discovered new exit (range 15) 32 | -11/Scrapyard | Entered Materials 79 | -10/Materials | Discovered new exit (range 16) 92 | -10/Materials | Entered Mines 92 | -10/Mines | Discovered new exit (range 8) 119 | -10/Mines | Received a Rocket Launcher from a helpful Derelict 149 | -10/Mines | Found a damaged Exp. Sensor Array with a note attached 151 | -10/Mines | Found Prototype Device 152 | -10/Mines | Identified Exp. Sensor Array 222 | -10/Mines | Received a Mining Laser from a helpful Derelict 301 | -10/Mines | Build established: Mutant 314 | -10/Mines | Learned location of Mines (-8) 339 | -10/Mines | Discovered new exit (range 9) 346 | -10/Mines | Entered Materials 346 | -9/Materials | Evolved 2 slots: Utility x2 346 | -9/Materials | Discovered new exit (range 7) 467 | -9/Materials | Repaired Exp. Sensor Array 506 | -9/Materials | Entered Storage 585 | -9/Storage | Lost 8 parts (1p2n1u4w) 595 | -9/Storage | Core integrity fell below 50% 658 | -9/Storage | Core integrity fell below 20% 664 | -9/Storage | Destroyed by Y-45 Defender with Heavy Assault Rifle Last Messages --------------- 00590_ U-05 Engineer builds a Wall. 00590_ Critical hit (Burn: +37). 00591_ U-05 Engineer lays Concrete. 00594_ Triggered Explosive Trap. 00594_ An explosion rips through the floor. 00599_ Wheel destroyed. 00603_ U-05 Engineer builds a Wall. 00617_ Imp. Ion Engine destroyed. 00639_ Lrg. Battery destroyed. 00643_ K-01 Serf collects debris. 00647_ Acquired EMP Blaster. 00647_ K-01 Serf collects debris. 00651_ Acquired Hvy. Assault Rifle. 00651_ K-01 Serf collects debris. 00652_ Acquired 85 matter. 00652_ K-01 Serf collects debris. 00655_ Acquired Seismic Detector. 00656_ K-01 Serf collects debris. 00660_ EMP Blaster destroyed. 00662_ K-01 Serf collects debris. Map ----- +----------------------------------------------------+ | | | | | | | | | | | | | | | | | | | ?????????????????????????????????????????????????? | | ?????????????????????????????????????????????????? | | ?????????????????????????????????????????????????? | | ##???????????????????????????????????????????????? | | #????????????##?????????????????????????????????? | | +????????????"""????????????????????????????????? | | #???????????#"T"#####???????????????????????????? | | #???????### #???????????????????????????? | | #???????""" """ """ #???????????????????????????? | | #???????"R """ """ ##########??????????????????? | | #????????"" """ """ # k #??????????????????? | | #?????????# # #??????????????????? | | #????????## # k #??????????????????? | | #????????# # #??????????????????? | | #?????????# # #??????????????????? | | #################+### #??????????????????? | | Y @ #??????????????????? | | Y # #??????????????????? | | Y #??????????????????? | | ???############+######Y######+#??????????????????? | | ??#????????# r ??????????????????????????? | | #????????# ## ??????????????????????????? | | #????????# ###??????????????????????????? | | #????????# #????????????????????????????? | | #????????# """""" #????????????????????????????? | | #? ??????# "????? #????????????????????????????? | | ??#????????# "????? #???#????????????????????????? | | ???????????# """""" #?? #????????????????????????? | | ??#??#"""#?# #?? #????????????????????????? | | ?????? ??######+##### # """????????????????????? | | ###### ???????# + ???????????????? | | # ##+######### ###??????????????????????? | | # #????????????????????????? | | # / ??????????????????????? | | # # """ ???????????????????? | | ######/######+##+## #?""" ???????????????????? | | ## # +??""????????????????????? | | """ ## """ """ """ #?#??? ????????????????????? | | """ ## """ """ """ #??????????????????????????? | | """ ## """ """ """ #??????????????????????????? | | # #??????????????????????????? | +----------------------------------------------------+ Best States ------------- Heat Dissipation 28 Energy Generation 14 Energy Capacity 465 Matter Stores 300 Matter Capacity 300 Sight Range 16 Robot Scan Range 20 Terrain Scan Range 14 Terrain Scan Density 10 Evasion (%) 50 Item Schematics ----------------- Exp. Sensor Array | -9/Materials | Scanalyzed Robot Schematics ------------------ None Fabricated ------------ Nothing Alien Tech Used ----------------- None Achievements -------------- None Challenges ------------ None Game ------ Seed ScatterTripodEngine Manual? 0 Play Time 00:11:06 Cumulative 16.6 hours Start 2024.04.23 @ 00:51:17 End 2024.04.23 @ 01:00:31 Sessions 1 Manual Loads 0 Difficulty Rogue Special Mode None Game No. 48 Rogue 48 Adventurer 0 Explorer 0 Win Type - Total 0 Types 0/0/0/0/0/0/0/0/0 Lore% 13 Gallery% 28 Achievement% 21 Wizard Run 0 Options --------- Layout 1 ASCII 0 Keyboard 0 Movement Arrows Keybinds 0 Fullscreen 1 Font 16/SmallcapsGlow Map View 25x20 Zoom Use 100% Tactical HUD 1 Map Filters NONE Filters NONE Steam SD RUN: bcfe6cbe-f3a0-49bc-9217-1a292f92e511